[Event "EIWCC 2017"]
[Site "Riga"]
[Date "2017.04.13"]
[Round "3"]
[White "Isgandarova, Khayala"]
[Black "Zimina, Olga"]
[Result "0-1"]
[ECO "C77"]
[WhiteElo "2211"]
[BlackElo "2395"]
[Annotator "NA"]
[PlyCount "200"]
[EventDate "2017.??.??"]
[EventType "swiss"]
[EventCountry "LAT"]
[SourceTitle "playchess.com"]
[Source "ChessBase"]
[SourceQuality "1"]
[TimeControl "40/5400+30:1800+30"]

1. e4 {[%emt 0:00:00]} e5 {[%emt 0:00:29]} 2. Nf3 {[%emt 0:00:00]} Nc6 {[%emt 0:00:05]} 3. Bb5 {[%emt 0:00:00]} a6 {[%emt 0:00:08]} 4. Ba4 {[%emt 0:00:00]} Nf6 {[%emt 0:00:06]} 5. d3 {[%emt 0:00:00]} b5 {[%emt 0:00:09]} 6. Bb3 {[%emt 0:00:02]} Be7 {[%emt 0:00:07]} 7. O-O {[%emt 0:00:50]} O-O {[%emt 0:00:21]} 8. Nc3 {[%emt 0:05:04]} d6 {[%emt 0:00:21]} 9. Nd5 {[%emt 0:03:36]} Na5 {[%emt 0:04:56]} 10. Nxe7+ {[%emt 0:06:48]} Qxe7 {[%emt 0:00:13]} 11. c3 {[%emt 0:02:17]} Nxb3 {[%emt 0:01:38]} 12. axb3 {[%emt 0:03:36]} h6 {[%emt 0:13:23]} 13. b4 {[%emt 0:10:12]} c5 {[%emt 0:05:48]} 14. Qe2 {[%emt 0:10:28]} cxb4 {[%emt 0:06:40]} 15. cxb4 {[%emt 0:01:42]} d5 {[%emt 0:00:52]} 16. exd5 {[%emt 0:20:39]} Nxd5 $11 {[%emt 0:01:05]} 17. Qxe5 {[%emt 0:01:02]} Qxe5 {[%emt 0:01:18]} 18. Nxe5 {[%emt 0:00:04]} Re8 {[%emt 0:05:23]} 19. Nc6 {[%emt 0:05:04]} Bd7 {[%emt 0:09:23]} 20. Nd4 {[%emt 0:00:10]} Nxb4 {[%emt 0:02:05]} 21. Ra3 {[%emt 0:00:04]} Rac8 {[%emt 0:06:27]} 22. Bd2 {[%emt 0:04:33]} Nc2 {[%emt 0:00:17]} 23. Nxc2 {[%emt 0:00:05]} Rxc2 {[%emt 0:00:08]} 24. Bc3 {[%emt 0:00:32]} Bf5 {[%emt 0:09:10]} 25. d4 {[%emt 0:08:28]} Bd3 {[%emt 0:05:08]} 26. Rd1 {[%emt 0:00:34]} Bc4 {[%emt 0:02:56]} 27. b4 {[%emt 0:04:02]} Bd5 {[%emt 0:07:40]} 28. h3 {[%emt 0:05:50]} Re6 {[%emt 0:01:41]} 29. Rda1 {[%emt 0:06:38]} h5 {[%emt 0:03:23]} 30. Be1 {[%emt 0:00:21]} Rce2 {[%emt 0:00:51]} 31. Bc3 {[%emt 0:01:36]} Rf6 {[%emt 0:01:07]} 32. Be1 {[%emt 0:00:44]} Rg6 {[%emt 0:05:12]} 33. Rg3 {[%emt 0:00:51]} Rxg3 {[%emt 0:02:50]} 34. fxg3 {[%emt 0:00:03]} Bxg2 {[%emt 0:00:11]} 35. Bf2 {[%emt 0:01:00]} Bxh3 {[%emt 0:00:27]} 36. Rxa6 {[%emt 0:00:13]} Rb2 {[%emt 0:03:47]} 37. Be1 {[%emt 0:00:38]} Rg2+ {[%emt 0:00:40]} 38. Kh1 {[%emt 0:00:06]} Re2 {[%emt 0:00:07]} 39. Ra8+ {[%emt 0:00:30]} Kh7 {[%emt 0:00:02]} 40. Ra1 {[%emt 0:00:00]} Be6 {[%emt 0:01:50]} 41. Kg1 {[%emt 0:01:00]} Kg6 {[%emt 0:02:17]} 42. Rd1 {[%emt 0:00:24]} Bd5 {[%emt 0:02:48]} 43. Kf1 {[%emt 0:00:23]} Rb2 {[%emt 0:01:41]} 44. Ra1 {[%emt 0:02:54]} Kf5 {[%emt 0:00:39]} 45. Ra7 {[%emt 0:03:36]} Kg4 {[%emt 0:02:08]} 46. Re7 {[%emt 0:01:39]} Be6 {[%emt 0:08:45]} 47. d5 {[%emt 0:09:08]} Bxd5 {[%emt 0:01:16]} 48. Bc3 {[%emt 0:00:12]} Bc4+ {[%emt 0:04:58]} 49. Ke1 {[%emt 0:04:49]} Rc2 {[%emt 0:04:55]} 50. Bxg7 {[%emt 0:01:42]} Kxg3 {[%emt 0:00:05]} 51. Bf6 {[%emt 0:00:57]} Kf3 {[%emt 0:00:52]} 52. Re5 {[%emt 0:02:10]} Rh2 {[%emt 0:00:13]} 53. Rf5+ {[%emt 0:01:19]} Ke4 {[%emt 0:00:05]} 54. Re5+ {[%emt 0:02:01]} Kd3 {[%emt 0:00:48]} 55. Rf5 {[%emt 0:01:55]} h4 {[%emt 0:01:54]} 56. Rf2 {[%emt 0:00:51]} Rh1+ {[%emt 0:00:49]} 57. Rf1 {[%emt 0:00:04]} Rh3 {[%emt 0:00:08]} 58. Rf4 {[%emt 0:01:48]} Re3+ {[%emt 0:01:30]} 59. Kf2 {[%emt 0:00:27]} Re2+ {[%emt 0:00:12]} 60. Kg1 {[%emt 0:00:49]} Re1+ {[%emt 0:01:39]} 61. Kf2 {[%emt 0:00:35]} Rb1 {[%emt 0:00:56]} 62. Be7 {[%emt 0:00:16]} Rb2+ {[%emt 0:00:06]} 63. Kg1 {[%emt 0:00:24]} h3 {[%emt 0:02:09]} 64. Rf3+ {[%emt 0:00:21]} Ke4 {[%emt 0:00:02]} 65. Rxh3 {[%emt 0:00:13]} f5 {[%emt 0:00:23]} 66. Rh4+ {[%emt 0:02:34]} Ke5 {[%emt 0:00:37]} 67. Bc5 {[%emt 0:00:35]} Rd2 {[%emt 0:00:43]} 68. Rh2 {[%emt 0:01:24]} Rd1+ {[%emt 0:00:13]} 69. Kf2 {[%emt 0:00:06]} f4 {[%emt 0:00:21]} 70. Rh8 {[%emt 0:00:43]} Rd2+ {[%emt 0:00:31]} 71. Kg1 {[%emt 0:00:36]} Ke4 {[%emt 0:00:11]} 72. Rh3 {[%emt 0:01:04]} Rd1+ {[%emt 0:01:01]} 73. Kf2 {[%emt 0:00:35]} Rf1+ {[%emt 0:00:37]} 74. Kg2 {[%emt 0:00:03]} Rb1 {[%emt 0:00:27]} 75. Rf3 {[%emt 0:00:27]} Be2 {[%emt 0:00:18]} 76. Rf2 {[%emt 0:00:55]} f3+ {[%emt 0:00:42]} 77. Kg3 {[%emt 0:00:21]} Rg1+ {[%emt 0:00:12]} 78. Kh2 {[%emt 0:00:06]} Rg5 {[%emt 0:00:08]} 79. Kh3 {[%emt 0:00:44]} Rxc5 {[%emt 0:01:49]} 80. bxc5 {[%emt 0:00:04]} Kd5 {[%emt 0:00:02]} 81. c6 {[%emt 0:01:22]} Kxc6 {[%emt 0:00:05]} 82. Rh2 {[%emt 0:00:21]} b4 {[%emt 0:00:20]} 83. Kg3 {[%emt 0:00:14]} Kc5 {[%emt 0:00:27]} 84. Rh1 {[%emt 0:00:53]} b3 {[%emt 0:00:19]} 85. Kf2 {[%emt 0:00:13]} Kd4 {[%emt 0:00:12]} 86. Rh8 {[%emt 0:00:38]} b2 {[%emt 0:03:28]} 87. Rb8 {[%emt 0:00:29]} Kc3 {[%emt 0:00:05]} 88. Rb7 {[%emt 0:00:36]} Bd1 {[%emt 0:00:32]} 89. Rc7+ {[%emt 0:00:22]} Kd2 {[%emt 0:00:11]} 90. Rd7+ {[%emt 0:00:12]} Kc1 {[%emt 0:00:06]} 91. Rc7+ {[%emt 0:00:12]} Kd2 {[%emt 0:00:39]} 92. Rd7+ {[%emt 0:00:35]} Kc2 {[%emt 0:00:06]} 93. Rc7+ {[%emt 0:00:09]} Kb3 {[%emt 0:00:07]} 94. Ke1 {[%emt 0:01:12]} Ka3 {[%emt 0:00:12]} 95. Ra7+ {[%emt 0:00:52]} Ba4 {[%emt 0:00:09]} 96. Rb7 {[%emt 0:00:06]} Bb3 {[%emt 0:00:06]} 97. Ra7+ {[%emt 0:00:37]} Kb4 {[%emt 0:00:04]} 98. Rb7+ {[%emt 0:00:10]} Kc4 {[%emt 0:00:06]} 99. Rc7+ {[%emt 0:00:20]} Kd5 {[%emt 0:00:12]} 100. Rd7+ {[%emt 0:01:14]} Ke5 0-1

[Event "EIWCC 2017"]
[Site "Riga"]
[Date "2017.04.13"]
[Round "3"]
[White "Paramzina, Anastasya"]
[Black "Zvereva, Margarita"]
[Result "1-0"]
[ECO "B17"]
[WhiteElo "2202"]
[BlackElo "1771"]
[Annotator "NA"]
[PlyCount "59"]
[EventDate "2017.??.??"]
[EventType "swiss"]
[EventCountry "LAT"]
[SourceTitle "playchess.com"]
[Source "ChessBase"]
[SourceQuality "1"]
[TimeControl "40/5400+30:1800+30"]

1. e4 {[%emt 0:02:08]} c6 {[%emt 0:00:07]} 2. d4 {[%emt 0:00:04]} d5 {[%emt 0:00:05]} 3. Nc3 {[%emt 0:00:03]} dxe4 {[%emt 0:00:08]} 4. Nxe4 {[%emt 0:00:04]} Nd7 {[%emt 0:00:20]} 5. Bd3 {[%emt 0:00:39]} Ngf6 {[%emt 0:03:38]} 6. Ng5 {[%emt 0:00:42]} g6 {[%emt 0:01:36]} 7. Qe2 {[%emt 0:10:26]} Bg7 {[%emt 0:07:38]} 8. Bd2 {[%emt 0:01:08]} O-O 9. O-O-O {[%emt 0:00:32]} c5 {[%emt 0:08:48]} 10. N1f3 {[%emt 0:02:06]} e6 {[%emt 0:05:10]} 11. Bc4 {[%emt 0:05:53]} h6 {[%emt 0:04:41]} 12. Nxe6 {[%emt 0:11:53]} fxe6 {[%emt 0:09:38]} 13. Bxe6+ {[%emt 0:00:05]} Kh7 {[%emt 0:02:41]} 14. h4 {[%emt 0:01:13]} Nh5 {[%emt 0:20:10]} 15. g4 {[%emt 0:21:52]} Nf4 {[%emt 0:08:27]} 16. Bxf4 {[%emt 0:01:37]} Rxf4 {[%emt 0:00:05]} 17. Ng5+ {[%emt 0:01:01]} Kh8 {[%emt 0:00:25]} 18. Nf7+ {[%emt 0:10:39]} Rxf7 {[%emt 0:00:11]} 19. Bxf7 {[%emt 0:00:04]} Qb6 {[%emt 0:09:50]} 20. Bb3 {[%emt 0:03:46]} Qf6 {[%emt 0:03:14]} 21. g5 {[%emt 0:04:17]} Qf8 {[%emt 0:04:20]} 22. Kb1 {[%emt 0:06:56]} h5 {[%emt 0:02:47]} 23. Rd3 {[%emt 0:02:56]} cxd4 {[%emt 0:02:08]} 24. Rf3 {[%emt 0:00:14]} Qd8 {[%emt 0:00:26]} 25. Rf7 {[%emt 0:00:37]} Nf8 {[%emt 0:02:40]} 26. Re1 {[%emt 0:02:04]} Bg4 {[%emt 0:01:03]} 27. Qe7 {[%emt 0:00:17]} d3 {[%emt 0:02:44]} 28. Rxg7 {[%emt 0:00:46]} Be6 {[%emt 0:00:50]} 29. Bxe6 {[%emt 0:02:17]} Qxe7 {[%emt 0:00:14]} 30. Rxe7 {[%emt 0:00:06]} 1-0

[Event "EIWCC 2017"]
[Site "Riga"]
[Date "2017.04.13"]
[Round "3"]
[White "Petrenko, Svetlana"]
[Black "Ambartsumova, Karina"]
[Result "0-1"]
[ECO "E62"]
[WhiteElo "2136"]
[BlackElo "2282"]
[Annotator "NA"]
[PlyCount "86"]
[EventDate "2017.??.??"]
[EventType "swiss"]
[EventCountry "LAT"]
[SourceTitle "playchess.com"]
[Source "ChessBase"]
[SourceQuality "1"]
[TimeControl "40/5400+30:1800+30"]

1. Nf3 {[%emt 0:00:00]} Nf6 {[%emt 0:00:24]} 2. g3 {[%emt 0:00:33]} g6 {[%emt 0:00:50]} 3. Bg2 {[%emt 0:00:05]} Bg7 {[%emt 0:00:05]} 4. O-O {[%emt 0:00:29]} O-O {[%emt 0:01:21]} 5. d4 {[%emt 0:03:59]} d6 {[%emt 0:01:24]} 6. c4 {[%emt 0:07:26]} Nc6 {[%emt 0:01:11]} 7. Nc3 {[%emt 0:01:03]} e5 {[%emt 0:02:06]} 8. d5 {[%emt 0:03:14]} Nb8 {[%emt 0:00:41]} 9. e4 {[%emt 0:00:40]} a5 {[%emt 0:01:48]} 10. Ne1 {[%emt 0:06:26]} Na6 {[%emt 0:02:26]} 11. Nd3 {[%emt 0:01:11]} Nd7 {[%emt 0:03:43]} 12. Be3 {[%emt 0:05:34]} Ndc5 {[%emt 0:17:10]} 13. Nxc5 {[%emt 0:02:20]} Nxc5 {[%emt 0:02:28]} 14. a3 {[%emt 0:03:28]} f5 {[%emt 0:09:58]} 15. b4 {[%emt 0:02:57]} axb4 {[%emt 0:03:09]} 16. axb4 {[%emt 0:00:02]} Rxa1 {[%emt 0:00:13]} 17. Qxa1 {[%emt 0:00:02]} Na6 {[%emt 0:10:20]} 18. Rb1 {[%emt 0:07:51]} f4 {[%emt 0:01:45]} 19. Bd2 {[%emt 0:01:13]} h5 {[%emt 0:06:12]} 20. h3 {[%emt 0:13:13]} Qf6 {[%emt 0:07:52]} 21. Nd1 {[%emt 0:02:16]} Bh6 {[%emt 0:04:32]} 22. Qc3 {[%emt 0:02:34]} b6 {[%emt 0:06:41]} 23. gxf4 {[%emt 0:09:47]} Bxf4 {[%emt 0:00:07]} 24. Bxf4 {[%emt 0:00:04]} Qxf4 {[%emt 0:00:10]} 25. Qe3 {[%emt 0:01:09]} g5 {[%emt 0:04:44]} 26. Qxf4 {[%emt 0:00:55]} Rxf4 {[%emt 0:03:40]} 27. f3 {[%emt 0:02:35]} g4 {[%emt 0:02:18]} 28. hxg4 {[%emt 0:07:39]} hxg4 {[%emt 0:00:02]} 29. fxg4 {[%emt 0:00:10]} Bxg4 {[%emt 0:00:09]} 30. Nf2 {[%emt 0:01:03]} Be2 {[%emt 0:01:01]} 31. Bh3 {[%emt 0:12:30]} Bxc4 {[%emt 0:00:39]} 32. Bc8 {[%emt 0:00:45]} Rf8 {[%emt 0:02:15]} 33. Be6+ {[%emt 0:01:05]} Kg7 {[%emt 0:00:31]} 34. Kg2 {[%emt 0:00:45]} c6 {[%emt 0:04:02]} 35. b5 {[%emt 0:01:36]} cxb5 {[%emt 0:00:37]} 36. Bd7 {[%emt 0:00:38]} b4 {[%emt 0:00:36]} 37. Bg4 {[%emt 0:00:27]} b3 {[%emt 0:00:52]} 38. Nh3 {[%emt 0:00:43]} Nc5 {[%emt 0:00:35]} 39. Ng5 {[%emt 0:00:20]} Ra8 {[%emt 0:00:41]} 40. Ne6+ {[%emt 0:00:00]} Kf6 {[%emt 0:00:34]} 41. Nxc5 {[%emt 0:02:24]} bxc5 {[%emt 0:01:09]} 42. Kf2 {[%emt 0:03:18]} Ra2+ {[%emt 0:01:35]} 43. Ke3 {[%emt 0:00:05]} Rh2 {[%emt 0:01:48]} 0-1

[Event "EIWCC 2017"]
[Site "Riga"]
[Date "2017.04.13"]
[Round "3"]
[White "De Seroux, Camille"]
[Black "Unuk, Laura"]
[Result "0-1"]
[ECO "C44"]
[WhiteElo "2122"]
[BlackElo "2275"]
[Annotator "NA"]
[PlyCount "92"]
[EventDate "2017.??.??"]
[EventType "swiss"]
[EventCountry "LAT"]
[SourceTitle "playchess.com"]
[Source "ChessBase"]
[SourceQuality "1"]
[TimeControl "40/5400+30:1800+30"]

1. e4 {[%emt 0:00:00]} e5 {[%emt 0:00:12]} 2. Nf3 {[%emt 0:00:00]} Nc6 {[%emt 0:00:11]} 3. d4 {[%emt 0:00:07]} exd4 {[%emt 0:00:18]} 4. Nxd4 {[%emt 0:00:10]} Nf6 {[%emt 0:00:13]} 5. Nc3 {[%emt 0:00:44]} Bb4 {[%emt 0:00:16]} 6. Nxc6 {[%emt 0:00:14]} bxc6 {[%emt 0:00:14]} 7. Bd3 {[%emt 0:00:13]} O-O {[%emt 0:00:15]} 8. O-O {[%emt 0:00:12]} d5 {[%emt 0:00:10]} 9. exd5 {[%emt 0:00:09]} cxd5 {[%emt 0:00:15]} 10. Bg5 {[%emt 0:00:15]} c6 {[%emt 0:00:25]} 11. Qf3 {[%emt 0:00:09]} h6 {[%emt 0:00:12]} 12. Bxf6 {[%emt 0:02:19]} Qxf6 {[%emt 0:00:12]} 13. Qxf6 {[%emt 0:00:06]} gxf6 {[%emt 0:00:07]} 14. Ne2 {[%emt 0:01:11]} Re8 {[%emt 0:00:43]} 15. Ng3 {[%emt 0:11:10]} Rb8 {[%emt 0:16:06]} 16. Nh5 {[%emt 0:21:24]} Be7 $11 {[%emt 0:04:11]} 17. Rfe1 {[%emt 0:01:56]} Kf8 {[%emt 0:00:50]} 18. b3 {[%emt 0:05:04]} Bg4 {[%emt 0:08:11]} 19. Ng3 {[%emt 0:03:07]} Bb4 {[%emt 0:01:49]} 20. Rxe8+ {[%emt 0:00:54]} Rxe8 {[%emt 0:00:57]} 21. h3 {[%emt 0:14:25]} Bc3 {[%emt 0:06:31]} 22. Rb1 {[%emt 0:03:30]} Be6 {[%emt 0:11:03]} 23. Rd1 {[%emt 0:07:54]} a5 {[%emt 0:03:21]} 24. Nf5 {[%emt 0:06:57]} c5 {[%emt 0:10:22]} 25. Nxh6 {[%emt 0:10:58]} c4 {[%emt 0:02:19]} 26. Bf5 {[%emt 0:02:47]} cxb3 {[%emt 0:02:14]} 27. axb3 {[%emt 0:01:07]} Kg7 {[%emt 0:00:21]} 28. Bxe6 {[%emt 0:00:56]} fxe6 {[%emt 0:01:28]} 29. Ng4 {[%emt 0:00:07]} f5 {[%emt 0:03:26]} 30. Nh2 {[%emt 0:01:03]} Rc8 {[%emt 0:06:37]} 31. Nf3 {[%emt 0:01:24]} Kf6 {[%emt 0:00:06]} 32. Kf1 {[%emt 0:03:09]} Bb4 {[%emt 0:01:13]} 33. Rc1 {[%emt 0:01:52]} e5 {[%emt 0:01:20]} 34. Ke2 {[%emt 0:00:36]} e4 {[%emt 0:00:55]} 35. Nd4 {[%emt 0:00:36]} Bc3 {[%emt 0:06:40]} 36. Rd1 {[%emt 0:00:24]} Bxd4 {[%emt 0:01:43]} 37. Rxd4 {[%emt 0:00:06]} Rxc2+ {[%emt 0:00:09]} 38. Ke1 {[%emt 0:01:02]} Ke5 {[%emt 0:01:25]} 39. Ra4 {[%emt 0:00:15]} f4 {[%emt 0:03:06]} 40. Rxa5 {[%emt 0:00:00]} e3 {[%emt 0:01:06]} 41. fxe3 {[%emt 0:07:53]} fxe3 {[%emt 0:00:20]} 42. b4 {[%emt 0:13:43]} Ke4 {[%emt 0:01:38]} 43. b5 {[%emt 0:01:53]} d4 {[%emt 0:03:28]} 44. Ra4 {[%emt 0:02:09]} Rxg2 {[%emt 0:02:56]} 45. b6 {[%emt 0:02:39]} Kf3 {[%emt 0:05:19]} 46. Kd1 {[%emt 0:00:50]} e2+ {[%emt 0:01:11]} 0-1

[Event "EIWCC 2017"]
[Site "Riga"]
[Date "2017.04.13"]
[Round "3"]
[White "Olde, Margareth"]
[Black "Bulmaga, Irina"]
[Result "0-1"]
[ECO "E68"]
[WhiteElo "2110"]
[BlackElo "2394"]
[Annotator "NA"]
[PlyCount "130"]
[EventDate "2017.??.??"]
[EventType "swiss"]
[EventCountry "LAT"]
[SourceTitle "playchess.com"]
[Source "ChessBase"]
[SourceQuality "1"]
[TimeControl "40/5400+30:1800+30"]

1. d4 {[%emt 0:00:00]} Nf6 {[%emt 0:00:07]} 2. c4 {[%emt 0:00:00]} g6 {[%emt 0:00:06]} 3. Nf3 {[%emt 0:00:00]} Bg7 {[%emt 0:00:07]} 4. g3 {[%emt 0:00:38]} d6 {[%emt 0:00:09]} 5. Bg2 {[%emt 0:00:08]} O-O {[%emt 0:00:09]} 6. O-O {[%emt 0:00:08]} Nbd7 {[%emt 0:00:06]} 7. Nc3 {[%emt 0:00:16]} e5 {[%emt 0:00:09]} 8. e4 {[%emt 0:00:38]} exd4 {[%emt 0:00:13]} 9. Nxd4 {[%emt 0:00:10]} Re8 {[%emt 0:00:06]} 10. Re1 {[%emt 0:01:33]} Nc5 {[%emt 0:00:08]} 11. h3 {[%emt 0:14:38]} Bd7 {[%emt 0:00:08]} 12. b3 {[%emt 0:06:06]} a5 {[%emt 0:06:46]} 13. Rb1 {[%emt 0:03:27]} h6 {[%emt 0:00:41]} 14. Kh2 {[%emt 0:04:54] E68: King's Indian: Fianchetto: 6...Nbd7 7 0-0 e5 8 e4} h5 {[%emt 0:00:20]} 15. Ba3 $146 {[%emt 0:06:48]} (15. f3 h4 16. g4 a4 17. b4 Ne6 18. Be3 Nxd4 19. Bxd4 Be6 20. Nd5 b5 21. Bxf6 Bxf6 22. cxb5 Bxd5 23. Qxd5 {0-1 (66) Georgiev,K (2624)-Ganguly,S (2660) Tallinn 2016}) 15... h4 {[%emt 0:02:58]} 16. Qd2 {[%emt 0:06:59]} Nh5 {[%emt 0:04:02]} 17. Nde2 {[%emt 0:18:17]} hxg3+ {[%emt 0:06:52]} 18. fxg3 {[%emt 0:00:47]} Bc6 {[%emt 0:00:53]} 19. Bxc5 {[%emt 0:05:26]} dxc5 {[%emt 0:00:58]} 20. Nd5 {[%emt 0:01:08]} Qd6 {[%emt 0:03:02]} 21. Bf3 {[%emt 0:06:11]} Nf6 {[%emt 0:03:36]} 22. Nec3 {[%emt 0:01:05]} Nd7 {[%emt 0:02:14]} 23. Rbd1 {[%emt 0:01:33]} Be5 {[%emt 0:03:59]} 24. Qg2 {[%emt 0:01:14]} Qf8 {[%emt 0:01:56]} (24... a4 $17) 25. Bg4 {[%emt 0:02:57]} Qg7 {[%emt 0:03:45]} 26. Nb5 {[%emt 0:02:43]} Bxb5 {[%emt 0:05:38]} 27. cxb5 {[%emt 0:00:02]} Nf8 {[%emt 0:00:32]} 28. b6 {[%emt 0:01:23]} cxb6 {[%emt 0:00:29]} 29. Nxb6 {[%emt 0:00:06]} Rad8 {[%emt 0:00:51]} 30. Nd7 {[%emt 0:02:20]} Bc3 {[%emt 0:03:20]} 31. Rf1 {[%emt 0:00:46]} Nxd7 {[%emt 0:10:56]} 32. Bxd7 {[%emt 0:02:46]} Re7 {[%emt 0:00:27]} 33. Bb5 {[%emt 0:00:13]} Rd4 {[%emt 0:03:27]} 34. Bc4 {[%emt 0:04:47]} a4 {[%emt 0:02:56]} 35. Bd5 {[%emt 0:00:36]} Rxd1 {[%emt 0:01:58]} 36. Rxd1 {[%emt 0:00:01]} a3 {[%emt 0:00:28]} 37. Qe2 {[%emt 0:01:50]} Bb4 {[%emt 0:01:09]} 38. Rf1 {[%emt 0:01:00]} Qb2 {[%emt 0:02:16]} 39. Rf2 {[%emt 0:00:11]} Qxe2 {[%emt 0:00:37]} 40. Rxe2 {[%emt 0:00:00]} Bc3 {[%emt 0:00:06]} 41. Kg2 {[%emt 0:04:39]} Kg7 {[%emt 0:00:33]} 42. Kf3 {[%emt 0:05:52]} b5 {[%emt 0:04:11]} 43. Rc2 {[%emt 0:01:20]} b4 {[%emt 0:00:35]} 44. g4 {[%emt 0:02:44]} Rc7 {[%emt 0:01:00]} 45. Bc4 {[%emt 0:08:11]} Rd7 {[%emt 0:01:02]} 46. Bd5 {[%emt 0:04:22]} c4 {[%emt 0:04:01]} 47. Ke2 {[%emt 0:07:14]} cxb3 {[%emt 0:07:45]} 48. Bxb3 {[%emt 0:00:05]} Kf6 {[%emt 0:00:21]} 49. Rc1 {[%emt 0:01:43]} Rd2+ {[%emt 0:01:02]} 50. Ke3 {[%emt 0:00:31]} Rb2 {[%emt 0:00:39]} 51. Rc2 {[%emt 0:01:18]} Rb1 {[%emt 0:01:54]} 52. Bc4 {[%emt 0:01:20]} Ke5 {[%emt 0:01:23]} 53. Bxf7 {[%emt 0:00:42]} Rh1 {[%emt 0:01:30]} 54. Kd3 {[%emt 0:02:23]} Rxh3+ {[%emt 0:03:08]} 55. Kc4 {[%emt 0:00:13]} g5 {[%emt 0:03:01]} 56. Rf2 {[%emt 0:00:33]} Kxe4 {[%emt 0:00:28]} 57. Bd5+ {[%emt 0:00:35]} Ke3 {[%emt 0:00:36]} 58. Rf5 {[%emt 0:00:35]} Ke2 {[%emt 0:01:12]} 59. Be6 {[%emt 0:00:42]} Re3 {[%emt 0:01:15]} 60. Bc8 {[%emt 0:00:35]} Bd2 {[%emt 0:00:37]} 61. Bd7 {[%emt 0:00:33]} b3 {[%emt 0:00:26]} 62. axb3 {[%emt 0:00:25]} a2 {[%emt 0:01:16]} 63. Bb5 {[%emt 0:00:29]} a1=Q {[%emt 0:00:17]} 64. Kc5+ {[%emt 0:00:10]} Kd1 {[%emt 0:00:10]} 65. Rf1+ {[%emt 0:00:16]} Be1 {[%emt 0:00:08]} 0-1

[Event "EIWCC 2017"]
[Site "Riga"]
[Date "2017.04.13"]
[Round "3"]
[White "Vidruska, Renate"]
[Black "Vega Gutierrez, Sabrina"]
[Result "0-1"]
[ECO "B80"]
[WhiteElo "2093"]
[BlackElo "2413"]
[Annotator "ChessBase"]
[PlyCount "86"]
[EventDate "2017.??.??"]
[EventType "swiss"]
[EventCountry "LAT"]
[SourceTitle "playchess.com"]
[Source "ChessBase"]
[SourceQuality "1"]
[TimeControl "40/5400+30:1800+30"]

1. e4 {[%emt 0:00:00]} c5 {[%emt 0:00:10]} 2. Nf3 {[%emt 0:00:00]} e6 {[%emt 0:00:12]} 3. d4 {[%emt 0:00:07]} cxd4 {[%emt 0:00:06]} 4. Nxd4 {[%emt 0:00:05]} Nf6 {[%emt 0:00:13]} 5. Nc3 {[%emt 0:00:05]} d6 {[%emt 0:00:13]} 6. g3 {[%emt 0:01:41]} Bd7 {[%emt 0:02:13]} 7. Bg2 {[%emt 0:00:25]} Nc6 {[%emt 0:00:28]} 8. O-O {[%emt 0:00:10]} Nxd4 {[%emt 0:08:54]} 9. Qxd4 {[%emt 0:00:30]} Qc7 {[%emt 0:00:20]} 10. Bg5 {[%emt 0:22:45]} Be7 {[%emt 0:05:31]} 11. Rad1 {[%emt 0:02:11]} Bc6 {[%emt 0:07:52]} 12. Rfe1 {[%emt 0:12:01]} O-O {[%emt 0:05:07]} 13. Bxf6 {[%emt 0:16:33]} Bxf6 {[%emt 0:01:58]} 14. Qxd6 {[%emt 0:04:21]} Qa5 {[%emt 0:15:50]} 15. Qd2 {[%emt 0:02:50]} Rfd8 {[%emt 0:00:35]} 16. Qe3 {[%emt 0:01:17]} Bxc3 {[%emt 0:00:09]} 17. Qxc3 {[%emt 0:01:39]} Qxc3 {[%emt 0:00:33]} 18. bxc3 {[%emt 0:00:16]} Kf8 {[%emt 0:02:10]} 19. e5 {[%emt 0:02:52]} Bxg2 {[%emt 0:02:45]} 20. Kxg2 {[%emt 0:00:02]} Rac8 {[%emt 0:01:24]} 21. Rxd8+ {[%emt 0:14:41]} Rxd8 {[%emt 0:00:04]} 22. Kf3 {[%emt 0:02:51]} Rd5 {[%emt 0:05:04]} 23. Re4 {[%emt 0:05:24]} Rc5 {[%emt 0:01:57]} 24. Ke2 {[%emt 0:06:15]} Rxc3 {[%emt 0:00:57]} 25. Kd2 {[%emt 0:00:00]} Rf3 {[%emt 0:06:15]} 26. Ke2 {[%emt 0:00:05]} Ra3 {[%emt 0:00:23]} 27. Rc4 {[%emt 0:00:01]} g5 {[%emt 0:04:47]} 28. h4 {[%emt 0:01:47]} gxh4 {[%emt 0:04:21]} 29. Rxh4 {[%emt 0:00:01]} Rxa2 {[%emt 0:00:11]} 30. Kd2 {[%emt 0:00:46]} Ra5 {[%emt 0:01:48]} 31. Re4 {[%emt 0:01:41]} h5 {[%emt 0:00:59]} 32. Kc3 {[%emt 0:00:21]} Kg7 {[%emt 0:02:15]} 33. Kb4 {[%emt 0:01:04]} b6 {[%emt 0:00:17]} 34. c4 {[%emt 0:00:42]} Ra2 {[%emt 0:04:25]} 35. f4 {[%emt 0:00:02]} Rb2+ {[%emt 0:00:29]} 36. Ka4 {[%emt 0:00:09]} a5 {[%emt 0:04:32]} 37. c5 {[%emt 0:01:30]} bxc5 {[%emt 0:00:08]} 38. Kxa5 {[%emt 0:00:01]} Rb3 {[%emt 0:00:15]} 39. Rc4 {[%emt 0:00:10]} Kg6 {[%emt 0:01:08]} 40. Rxc5 {[%emt 0:00:00]} Rxg3 {[%emt 0:00:20]} 41. Rc8 {[%emt 0:00:21]} Rf3 {[%emt 0:03:27]} 42. Rg8+ {[%emt 0:00:24]} Kh7 {[%emt 0:00:49]} 43. Rg5 {[%emt 0:00:45]} Kh6 {[%emt 0:00:05]} 0-1